Cogmind - Beta 13 X1 @@@ ROGUE MODE // 2023.11.24 @ 19:57:57 Player: Plexion Result: Self-destructed Performance ------------- Evolutions (1) 500 Regions Visited (3) 600 Robots Destroyed (12) 60 Value Destroyed (323) 323 Prototype IDs (0) 0 Alien Tech Used (0) 0 Bonus (0) 0 TOTAL SCORE: 1483 Bonus ------- None Cogmind --------- Core Integrity 400/400 Matter 110/300 Energy 115/125 System Corruption 0% Temperature Cool (0) Movement Treading (240) Ox1 Location -9/Materials Parts ------- > --- POWER (1) -------- Light Ion Engine > --- PROPULSION (3) --- Light Treads Light Treads > --- UTILITY (3) ------ High-capacity Storage Unit Targeting Computer > --- WEAPON (2) ------- (None) > --- INVENTORY (20) --- Huge Storage Unit Hacking Suite Peak State ------------ > --- POWER ------------ Light Ion Engine > --- PROPULSION ------- Light Treads Light Treads > --- UTILITY ---------- Small Storage Unit Large Storage Unit > --- WEAPON ----------- Medium Laser Assault Rifle > --- INVENTORY -------- Light Ion Engine Small Laser Grenade Launcher [Rating: 7] Favorites ----------- Power Light Ion Engine Engine Light Ion Engine Propulsion Light Treads Treads Light Treads Utility High-capacity Storage Unit Device Seismic Detector Storage High-capacity Storage Unit Processor Targeting Computer Weapon Medium Laser Energy Gun Medium Laser Ballistic Gun Assault Rifle Launcher Grenade Launcher Build | -11 -10 -10 -9 ------- Run | Jun Mat Min Mat Slots Evolved 2 | . . . 2 Power . | . . . . Propulsion 1 | . . . 1 Utility 1 | . . . 1 Weapon . | . . . . Parts Attached 18 | 6 3 2 7 Power 2 | 1 . 1 . Engine 2 | 1 . 1 . Core . | . . . . Reactor . | . . . . Propulsion 4 | 2 . . 2 Treads 4 | 2 . . 2 Leg . | . . . . Wheel . | . . . . Hover . | . . . . Flight . | . . . . Utility 5 | 1 3 . 1 Device 1 | . 1 . . Storage 3 | 1 2 . . Processor 1 | . . . 1 Hackware . | . . . . Protection . | . . . . Artifact . | . . . . Weapon 7 | 2 . 1 4 Energy Gun 4 | 1 . 1 2 Energy Cannon . | . . . . Ballistic Gun 1 | 1 . . . Ballistic Cannon . | . . . . Launcher 2 | . . . 2 Special Weapon . | . . . . Impact Weapon . | . . . . Slashing Weapon . | . . . . Piercing Weapon . | . . . . Special Melee Weapon . | . . . . Unidentified Prototypes . | . . . . Parts Lost 9 | . . 5 4 Power 1 | . . 1 . Propulsion 2 | . . . 2 Utility 1 | . . 1 . Weapon 5 | . . 3 2 Highest Loss Streak 5 | . . 5 2 To Critical Strikes . | . . . . Average Slot Usage (%) 84 | . 89 69 63 Engine 13 | . 14 14 11 Treads 27 | . 28 28 25 Device 3 | . 4 3 . Storage 13 | . 14 14 11 Energy Gun 11 | . 14 5 5 Ballistic Gun 11 | . 14 3 . Launcher 1 | . . . 6 Naked Turns . | . . . . Heaviest Build 67 | 12 67 48 46 Greatest Support 60 | 40 40 40 60 Greatest Overweight (x) 1 | . 1 1 1 Average Overweight (x) . | . . . . Largest Inventory Capacity 20 | 8 20 20 20 Average Capacity 17 | 7 17 20 20 Most Carried 7 | 2 7 7 4 Average Carried 4 | 1 4 5 2 Final Capacity 20 | 8 20 20 20 Final Carried 7 | 2 7 5 2 Class Distribution -------------------- 100% | Mutant Dominant Class ---------------- Mutant | -10/Materials Mutant | -10/Mines Mutant | -9/Materials Resources | -11 -10 -10 -9 ----------- Run | Jun Mat Min Mat Matter Collected 368 | 210 158 . . Remotely . | . . . . Salvage Created 356 | . 289 . 67 Parts 28 | . 25 . 3 Haulers Intercepted 1 | . 1 . . Recyclers Shooed . | . . . . Parts Field Recycled . | . . . . Retrieved Matter . | . . . . Parts Self-Destructed . | . . . . Prevented . | . . . . Kills | -11 -10 -10 -9 ------- Run | Jun Mat Min Mat Combat Hostiles Destroyed 10 | . 7 . 3 Guns 7 | . 7 . . AOE 3 | . . . 3 Classes Destroyed 5 | . 4 . 1 Hauler 1 | . 1 . . Operator 1 | . 1 . . Swarmer 3 | . 3 . . Grunt 6 | . 4 . 2 Sentry 1 | . . . 1 Best Kill Streak 3 | . 3 . 2 Combat Bots Only 3 | . 3 . 2 Max Kills in Single Turn 2 | . 1 . 2 Gunslinging . | . . . . Exploded 2 | . . . 2 Melee . | . . . . Uniques/NPCs Destroyed . | . . . . Combat | -11 -10 -10 -9 -------- Run | Jun Mat Min Mat Damage Taken 1053 | . 245 496 312 Core 162 | . 90 72 . Absorbed by Shields . | . . . . Core Remaining (%) 67 | 100 . 35 . Volleys Fired 48 | . 29 4 15 Largest 2 | . 2 2 1 Hottest 70 | . 70 60 40 Shots Fired 78 | . 58 5 15 Gun 65 | . 58 5 2 Cannon . | . . . . Launcher 13 | . . . 13 Special . | . . . . Kinetic 30 | . 29 1 . Thermal 33 | . 29 4 . Explosive 13 | . . . 13 Electromagnetic 2 | . . . 2 Robot Hit Streak 14 | . 14 5 3 Robot Miss Streak 5 | . 5 2 1 Penetration Max . | . . . . Secondary Targets . | . . . . Shots Hit Robots 48 | . 34 3 11 Core Hits 31 | . 16 1 14 Critical Kills . | . . . . Critical Parts Destroyed . | . . . . Critical Strikes 1 | . 1 . . Burn 1 | . 1 . . Melee Attacks . | . . . . Impact . | . . . . Slashing . | . . . . Piercing . | . . . . Sneak Attacks . | . . . . Combat Hostiles . | . . . . Follow-up Attacks . | . . . . Damage Inflicted 899 | 1 432 31 435 Guns 471 | . 427 31 13 Cannons . | . . . . Explosions 422 | . . . 422 Melee . | . . . . Ramming 6 | 1 5 . . Kinetic 212 | . 202 10 . Thermal 246 | . 225 21 . Explosive 422 | . . . 422 Electromagnetic 13 | . . . 13 Impact . | . . . . Slashing . | . . . . Piercing . | . . . . Highest Corruption . | . . . . Average Corruption . | . . . . Corruption Purged . | . . . . Corruption Blocked . | . . . . Overload Shots . | . . . . Overflow Damage 24 | . . . 24 Projectiles . | . . . . Explosions 24 | . . . 24 Melee . | . . . . Knockbacks . | . . . . Impact . | . . . . Kinetic . | . . . . Secondary . | . . . . Self-Inflicted Damage 79 | . . . 79 Shots 3 | . . . 3 Rammed 3 | 1 2 . . Targets Rammed 3 | 1 2 . . Kicked . | . . . . Crushed . | . . . . Highest Temperature 102 | . 102 . 9 Average Temperature 33 | . 35 . 4 Received Heat Transfer 195 | . 93 . 102 Siege Activations . | . . . . Robots Corrupted . | . . . . Combat Hostiles . | . . . . Parts Fried . | . . . . Impact Corruptions . | . . . . Robots Melted . | . . . . Combat Hostiles . | . . . . Parts Melted 1 | . 1 . . Heat Transferred 790 | . 740 50 . Parts Sabotaged . | . . . . Parts Stolen . | . . . . Parts Stripped . | . . . . Power Chain Reactions . | . . . . Missiles Intercepted . | . . . . Alert | -11 -10 -10 -9 ------- Run | Jun Mat Min Mat Peak Influence 230 | . 230 . 134 Initial . | . . . . Average 76 | . 97 . 41 Maximum Alert Level 1 | . 1 . . Low Security (%) 87 | 100 82 100 100 Level 1 12 | . 17 . . Level 2 . | . . . . Level 3 . | . . . . Level 4 . | . . . . Level 5 . | . . . . High Security . | . . . . Max Security . | . . . . Squads Dispatched 2 | . 2 . . Investigation . | . . . . Extermination . | . . . . Reinforcement 2 | . 2 . . Assault . | . . . . Garrison . | . . . . Intercept . | . . . . Searches Triggered . | . . . . Construction Impeded . | . . . . Haulers Reinforced . | . . . . Active Scanning Responses . | . . . . Cargo Convoy Interrupts . | . . . . Stealth | -11 -10 -10 -9 --------- Run | Jun Mat Min Mat Distress Signals 2 | . 2 . . Communications Jammed . | . . . . Distress Signals . | . . . . Times Spotted 29 | . 19 4 6 Peak Tracking Total 5 | . 3 2 5 Tactical Retreats 2 | . 2 . . Traps | -11 -10 -10 -9 ------- Run | Jun Mat Min Mat Traps Triggered . | . . . . Indirectly . | . . . . Trap Hack Attempts . | . . . . Triggered . | . . . . Disarmed . | . . . . Reprogrammed . | . . . . Reused . | . . . . Traps Extracted . | . . . . Installed . | . . . . Triggered . | . . . . Machines | -11 -10 -10 -9 ---------- Run | Jun Mat Min Mat Machines Disabled . | . . . . Max in Single Turn . | . . . . Machines Repaired . | . . . . Machines Sabotaged . | . . . . Overloaded Fab Kills . | . . . . Hacking | -11 -10 -10 -9 --------- Run | Jun Mat Min Mat Machines Accessed 3 | . 3 . . Terminals 3 | . 3 . . Fabricators . | . . . . Repair Stations . | . . . . Recycling Units . | . . . . Scanalyzers . | . . . . Garrison Access . | . . . . Total Hacks 7 | . 7 . . Successful 2 | . 2 . . Failed 5 | . 5 . . Catastrophic . | . . . . Database Lockouts . | . . . . Manual 8 | . 8 . . Terminals 7 | . 7 . . Fabricators . | . . . . Repair Stations . | . . . . Recycling Units . | . . . . Scanalyzers . | . . . . Garrison Access . | . . . . Terminal Hacks 2 | . 2 . . Robot Analysis 2 | . 2 . . Fabricator Hacks . | . . . . Repair Station Hacks . | . . . . Recycling Unit Hacks . | . . . . Scanalyzer . | . . . . Garrison Access Hacks . | . . . . Unauthorized Hacks . | . . . . Terminals . | . . . . Fabricators . | . . . . Repair Stations . | . . . . Recycling Units . | . . . . Scanalyzers . | . . . . Garrison Access . | . . . . Data Cores Recovered . | . . . . Used . | . . . . Hacking Detections 3 | . 3 . . Full Trace Events . | . . . . Feedback Events . | . . . . Feedback Blocked . | . . . . Robot Schematics Acquired . | . . . . Robots Built . | . . . . Authchips . | . . . . Time . | . . . . Total Robot Build Rating . | . . . . Part Schematics Acquired . | . . . . Parts Built . | . . . . Authchips . | . . . . Time . | . . . . Total Part Build Rating . | . . . . Parts Repaired . | . . . . Time . | . . . . Parts Recycled . | . . . . Recycled Matter . | . . . . Retrieved Matter . | . . . . Retrieved Components . | . . . . Parts Scanalyzed . | . . . . Part Schematics Acquired . | . . . . Parts Damaged . | . . . . Bothacking | -11 -10 -10 -9 ------------ Run | Jun Mat Min Mat Used RIF Installer . | . . . . Robots Hacked . | . . . . Non-combat . | . . . . Combat . | . . . . Robot Hacks Applied . | . . . . Relay Couplers Released . | . . . . Fabnet Peak Effective % . | . . . . Robots Rewired . | . . . . Allies Hacked . | . . . . Hacks Repelled . | . . . . Allies | -11 -10 -10 -9 -------- Run | Jun Mat Min Mat Total Allies . | . . . . Largest Group . | . . . . Highest-Rated Group . | . . . . Highest-Rated Ally . | . . . . Total Orders . | . . . . Ally Attacks . | . . . . Total Damage . | . . . . Kills . | . . . . Allies Corrupted . | . . . . Allies Melted . | . . . . Intel | -11 -10 -10 -9 ------- Run | Jun Mat Min Mat Robot Analysis Total 2 | . 2 . . Derelict Logs Recovered . | . . . . Drone Launches . | . . . . Drone Recoveries . | . . . . Exploration | -11 -10 -10 -9 ------------- Run | Jun Mat Min Mat Turns Passed 1145 | 68 825 83 169 Spaces Moved 474 | 36 345 31 62 Core 1 | 1 . . . Treads 473 | 35 345 31 62 Legs . | . . . . Wheels . | . . . . Hover . | . . . . Flight . | . . . . Fastest Speed 50 | 50 160 160 160 Average Speed 199 | 156 200 229 207 Slowest Speed 240 | 160 240 240 240 Overloaded Moves . | . . . . Propulsion Burnouts . | . . . . Robots Hopped . | . . . . Cave-ins Triggered . | . . . . Exploration Rate (%) 21 | 4 60 10 10 Regions Visited 3 Branch Regions 1 Pre-discovered Areas . | . . . . Known Exits Taken . | . . . . Unknown Exits Taken 3 | 1 1 1 . Scrap Searched . | . . . . Spaces Dug . | . . . . Terrain Destroyed 55 | . . . 55 Melee . | . . . . Projectile . | . . . . AOE 55 | . . . 55 Terrain Rammed . | . . . . Walls Destroyed . | . . . . Machines Disabled . | . . . . Actions | -11 -10 -10 -9 --------- Run | Jun Mat Min Mat Total 591 | 44 422 39 86 Wait 38 | . 35 3 . Move 471 | 35 344 30 62 Hop . | . . . . Pick Up 8 | 2 5 . 1 Fast Attach 10 | 6 3 . 1 Attach 7 | . . 2 5 Detach 3 | . 2 . 1 Swap 1 | . . . 1 Drop 2 | . 2 . . Fire 48 | . 29 4 15 Melee . | . . . . Ram . | . . . . Kick . | . . . . Crush 3 | 1 2 . . Escape Stasis . | . . . . Rewire . | . . . . Trap . | . . . . Miscellaneous . | . . . . Route ------- -11/Junkyard -10/Materials (discovered 4 exits: [*Mat x2] / [*Min x2]) -10/Mines -9/Materials History --------- Turn | Location | Event 32 | -11/Junkyard | Discovered new exit (range 15) 69 | -11/Junkyard | Entered Materials 300 | -10/Materials | Build established: Mutant 375 | -10/Materials | Discovered new exit (range 10) 574 | -10/Materials | Discovered new exit (range 12) 594 | -10/Materials | Discovered new exit (range 5) 882 | -10/Materials | Discovered new exit (range 6) 894 | -10/Materials | Entered Mines 895 | -10/Mines | Assembled infested the area 919 | -10/Mines | Core integrity fell below 50% 941 | -10/Mines | Discovered new exit (range 13) 953 | -10/Mines | Lost 5 parts (1p1u3w) 977 | -10/Mines | Entered Materials 977 | -9/Materials | Evolved 2 slots: Propulsion x1, Utility x1 1146 | -9/Materials | Self-destructed Last Messages --------------- 01058_ Acquired EM Pulse Gun. 01059_ U-05 Engineer lays Concrete. 01072_ Acquired Targeting Computer. 01081_ U-05 Engineer lays Concrete. 01093_ U-05 Engineer builds a Wall. 01097_ U-05 Engineer builds a Door. 01101_ U-05 Engineer lays Concrete. 01101_ U-05 Engineer builds a Wall. 01102_ U-05 Engineer lays Concrete. 01106_ U-05 Engineer builds a Wall. 01114_ U-05 Engineer lays Concrete. 01116_ U-05 Engineer builds a Wall. 01139_ G-34 Mercenary destroyed. 01139_ G-47 Trooper destroyed. 01143_ Grenade Launcher destroyed. 01143_ Destroyed Grenade Launcher. 01143_ U-05 Engineer lays Concrete. 01144_ The unstable cave ceiling collapses. 01145_ U-05 Engineer lays Concrete. 01145_ EM Pulse Gun destroyed. Map ----- +----------------------------------------------------+ | ?????????????????????????????????????????????????? | | ?????????????????????????????????????????????????? | | ?????????????????????????????????????????????????? | | ?????????????????????????????????????????????????? | | ?????????????????????????????????????????????????? | | ??????????????????????????????????????????#####??? | | ??????????????????????????????????######??# #??? | | ??????????????????????????????????? ?# #??? | | ?????????????????????????????????? """ ?# #??? | | ?????????????????????????????????? """ # #??? | | ?????????????????????????????????# """ # #??? | | ?????????????????????????????????# + #??? | | ?????????????????????????????????# # #??? | | ?????????????????????????????????# == ### #??? | | ?????????????????????????????????# == ???# #??? | | ?????????????????????????????????# == ???# #??? | | ??????????????????????????????###########???# #??? | | ??????????????????????????????# #???# #??? | | ???????????##?????????????????# #####+#### | | ???????????# ?????##???????## ## # | | ???????????# ??### #####?## ##== " # | | ???????????# ## # ### #+ #?#== """ # | | ???????????# #### ## ###= "" # | | ???????????? ### # """ # | | ????????????????# %g uuuu + "" # | | ????????????????# % @ ### # """ # | | ????????????????# ## # # # """ # | | ????????????????# rY ## ## # #+# """ # | | ????????????????### ####### # # # " # | | ??????????????????#w #?????#### + # / # | | ??????????????????# ????????# # ######### | | ??????????????????# ????????# # #???????? | | ??????????????????# ????????##### #???????? | | ??????????????????# ????????????# #???????? | | ??????????????????+ ????????????# !#???????? | | ??????????????????# ????????????#######???????? | | ??????????????????# #??????????????????????????? | | ?????????????????? ???????????????????????????? | | ?????????????????? ???????????????????????????? | | ?????????????????? ???????????????????????????? | | ?????????????????????????????????????????????????? | | ?????????????????????????????????????????????????? | | ?????????????????????????????????????????????????? | | ?????????????????????????????????????????????????? | | ?????????????????????????????????????????????????? | | ?????????????????????????????????????????????????? | | ?????????????????????????????????????????????????? | | ?????????????????????????????????????????????????? | | ?????????????????????????????????????????????????? | | ?????????????????????????????????????????????????? | +----------------------------------------------------+ Best States ------------- Heat Dissipation 28 Energy Generation 10 Energy Capacity 125 Matter Stores 300 Matter Capacity 300 Sight Range 16 Terrain Scan Density 10 Evasion (%) 40 Targeting Accuracy 5 Recoil Reduction 3 Item Schematics ----------------- None Robot Schematics ------------------ None Fabricated ------------ Nothing Alien Tech Used ----------------- None Achievements -------------- None Challenges ------------ None Game ------ Seed TractorSiegeNanoactuators Manual? 0 Play Time 00:06:33 Cumulative 485.5 hours Start 2023.11.24 @ 19:51:06 End 2023.11.24 @ 19:57:57 Sessions 1 Manual Loads 0 Difficulty Rogue Special Mode None Game No. 572 Rogue 485 Adventurer 87 Explorer 0 Win Type - Total 27 Types 8/0/15/1/1/0/2/0/0 Lore% 91 Gallery% 93 Achievement% 77 Wizard Run 0 Options --------- ASCII 0 Keyboard 1 Movement Numpad Keybinds 0 Fullscreen 1 Font 18/SmallcapsGlow Map View 76x50 Tactical HUD 1 Map Filters NONE Filters NONE Steam 1 RUN: 66cff3fc-30e4-449e-9100-1a5438663b7f